bitfinex/quotes_ETHUSD_20240604
["timestamp","ask_amount","ask_price","bid_price","bid_amount"]
[1717527463252,5.62154,3814.6,3814.3,0.783]
[1717527463396,5.62154,3814.6,3814.1,0.783]
[1717527463606,3.0,3814.6,3814.2,0.05159809]
[1717527463947,3.0,3814.6,3814.1,0.783]
[1717527464102,3.0,3814.9,3814.1,0.783]
[1717527464304,0.886937,3814.8,3814.1,0.783]
[1717527465854,0.886937,3814.8,3813.9,2.62196]
[1717527466414,19.57,3815.7,3814.5,1.881]
[1717527466415,7.3,3815.5,3814.5,1.881]
[1717527466628,2.62073,3815.8,3814.9,2.62128]
[1717527467217,2.62073,3815.8,3815.0,0.05140812]
[1717527469170,3.0,3815.7,3815.0,0.05140812]
[1717527471410,3.0,3815.7,3814.9,4.50228]
[1717527471614,3.562073,3815.7,3814.9,4.50228]
[1717527473093,3.562073,3815.7,3814.9,2.62128]
[1717527474220,3.0,3815.7,3814.9,2.62128]
[1717527474969,3.0,3815.7,3815.0,0.05140812]
[1717527485332,3.0,3815.7,3815.1,2.62114]
[1717527485514,3.0,3815.7,3815.1,2.67197099]
[1717527486101,3.0,3815.7,3815.6,0.783]
[1717527486305,3.0,3815.7,3815.6,0.83363507]
[1717527486506,3.562073,3815.7,3815.6,0.05063507]
[1717527486754,0.562073,3815.7,3815.6,0.783]
[1717527486905,2.62073,3815.8,3815.6,0.83363507]
[1717527490237,2.62073,3815.8,3815.6,0.05063507]
[1717527490641,2.62081,3815.6,3815.5,0.783]
[1717527490857,3.0,3815.7,3814.5,2.62154]
[1717527490858,2.4758,3815.4,3814.5,2.62154]
[1717527491048,3.02338,3815.4,3814.5,2.62154]
[1717527491245,2.62102,3815.3,3815.2,0.783]
[1717527496109,2.4949,3815.7,3814.2,2.4159]
[1717527496110,2.62122,3815.1,3814.2,2.4159]
[1717527496316,2.62122,3815.1,3814.8,0.783]
[1717527496615,2.883342,3815.1,3814.8,0.783]
[1717527497141,2.883342,3815.1,3814.9,0.05098088]
[1717527497346,2.883342,3815.1,3814.8,0.783]
[1717527497347,5.257742,3815.1,3814.8,0.783]
[1717527497640,5.257742,3815.1,3815.0,0.05094169]
[1717527497825,5.257742,3815.1,3814.9,0.05098088]
[1717527498025,2.62146,3814.7,3813.9,2.3243]
[1717527498248,2.6216,3814.5,3814.4,0.783]
[1717527498866,2.62173,3814.3,3814.2,0.783]
[1717527499311,0.87835262,3814.9,3813.5,4.94653]
[1717527499511,0.87835262,3814.9,3814.0,0.783]
[1717527499512,2.62187,3814.1,3814.0,0.783]
[1717527499888,2.62187,3814.1,3813.2,4.90453]
[1717527500020,2.62187,3814.1,3813.8,0.783]
[1717527500354,3.120327,3814.1,3813.8,0.783]
[1717527500740,3.120327,3814.1,3813.2,4.90453]
[1717527501057,2.62187,3814.1,3813.9,0.783]
[1717527502049,2.62187,3814.1,3813.2,4.90453]
[1717527502456,2.62203,3813.9,3813.2,4.90453]
[1717527503151,2.62203,3813.9,3813.1,1.881]
[1717527503937,2.62203,3813.9,3812.9,4.95275]
[1717527503938,2.62217,3813.7,3812.9,4.95275]
[1717527504133,2.62217,3813.7,3812.7,1.881]
[1717527504350,2.62217,3813.7,3812.7,2.6182541]
[1717527504666,2.62217,3813.7,3812.8,2.62273]
[1717527505021,2.62217,3813.7,3812.7,2.6182541]
[1717527505022,2.62193,3814.0,3813.1,1.881]
[1717527505416,2.62193,3814.0,3813.2,2.62245]
[1717527506028,2.62193,3814.0,3813.3,1.881]
[1717527506235,2.62193,3814.0,3813.2,2.62245]
[1717527506459,2.62193,3814.0,3813.3,1.881]
[1717527507363,2.62193,3814.0,3813.2,3.116535]
[1717527507539,2.62193,3814.0,3813.5,1.881]
[1717527509471,5.3627,3814.4,3813.9,1.881]
[1717527509472,3.0,3814.4,3813.9,1.881]
[1717527509664,5.62144,3814.7,3813.9,1.881]
[1717527509825,5.62144,3814.7,3813.9,2.576906]
[1717527510426,2.3683,3815.1,3813.9,5.198826]
[1717527510427,4.98953,3815.1,3813.9,5.198826]
[1717527510655,4.98953,3815.1,3814.0,2.4436]
[1717527510656,2.62123,3815.1,3814.0,2.4436]
[1717527511467,2.62123,3815.1,3814.1,2.62184]
[1717527511637,2.62123,3815.1,3814.4,1.881]
[1717527512185,2.62123,3815.1,3814.5,0.0516352]
[1717527512656,2.62123,3815.1,3814.3,2.62167]
[1717527513276,2.62095,3815.4,3814.4,0.0516744]
[1717527513480,2.62131,3814.9,3814.4,0.0516744]
[1717527513785,2.62131,3814.9,3814.0,2.4436]
[1717527513786,2.62131,3814.9,3814.1,2.62179]
[1717527513933,0.3,3815.4,3814.5,0.0516352]
[1717527513934,2.6211,3815.2,3814.5,0.0516352]
[1717527514139,2.6211,3815.2,3814.3,1.881]
[1717527514469,2.6211,3815.2,3814.6,0.051596]
[1717527514672,0.29211,3815.1,3814.3,4.50265]
[1717527514970,0.29211,3815.1,3814.4,0.0516744]
[1717527514971,2.62125,3815.0,3814.4,0.0516744]
[1717527519378,2.62125,3815.0,3814.4,0.0516744]
[1717527521974,2.62125,3815.0,3814.5,0.0516352]
[1717527522159,2.6214,3814.8,3814.0,5.06548]
[1717527522471,2.6214,3814.8,3814.6,0.05130677]
[1717527522682,2.6214,3814.8,3814.4,0.783]
[1717527523267,2.6214,3814.8,3814.5,0.05134597]
[1717527524997,2.6214,3814.8,3814.5,0.783]
[1717527525187,0.509,3814.7,3814.6,0.05130677]
[1717527526791,0.509,3814.7,3814.4,0.783]
[1717527527002,0.509,3814.7,3814.6,0.05130677]
[1717527527309,2.6215,3814.6,3814.5,0.05134597]
[1717527527633,2.6215,3814.6,3814.4,0.783]
[1717527528187,3.18141,3814.6,3814.4,0.783]
[1717527529316,2.6215,3814.6,3814.4,0.783]
[1717527537568,2.6215,3814.6,3814.0,2.62188]
[1717527537768,2.6215,3814.6,3814.5,0.783]
[1717527541799,19.57,3814.8,3814.5,0.783]
[1717527542232,19.57,3814.8,3814.7,0.783]
[1717527542380,2.465996,3814.8,3814.7,0.783]
[1717527542580,5.08996,3814.9,3814.7,0.783]
[1717527543046,5.08996,3814.9,3814.2,2.62177]
[1717527543047,2.62136,3814.9,3814.2,2.62177]
[1717527543201,2.62144,3814.7,3813.9,5.11453]
[1717527543407,2.62144,3814.7,3814.3,0.04972602]
[1717527543601,2.62144,3814.7,3814.5,0.783]
[1717527543840,3.115974,3814.7,3814.5,0.783]
[1717527551436,2.62163,3814.5,3813.7,3.16365336]
[1717527551769,2.62178,3814.2,3814.1,0.783]
[1717527551969,2.883958,3814.2,3814.1,0.783]
[1717527553422,2.883958,3814.2,3813.4,2.62227]
[1717527553423,2.62193,3814.0,3813.4,2.62227]
[1717527553739,2.62193,3814.0,3813.6,0.783]
[1717527554471,2.62193,3814.0,3813.8,0.783]
[1717527554667,3.1381208,3814.0,3813.8,0.783]
[1717527554978,3.1381208,3814.0,3813.6,0.783]
[1717527555681,2.62208,3813.8,3813.2,2.2864]
[1717527555859,2.62208,3813.8,3813.6,0.783]
[1717527556167,2.62208,3813.8,3813.2,2.2864]
[1717527556368,2.62208,3813.8,3813.7,0.783]
[1717527556552,2.93590708,3813.8,3813.7,0.783]
[1717527556755,2.93590708,3813.8,3813.1,2.62248]
[1717527556977,2.62208,3813.8,3813.6,0.783]
[1717527557279,2.62208,3813.8,3813.1,2.62248]
[1717527557478,2.62208,3813.8,3813.7,0.04997996]
[1717527557777,2.62208,3813.8,3813.6,0.783]
[1717527558129,2.62208,3813.8,3813.7,0.05029096]
[1717527558441,2.62208,3813.8,3813.6,0.783]
[1717527558636,2.62208,3813.8,3813.7,0.05029096]
[1717527558959,2.62208,3813.8,3813.6,0.783]
[1717527559461,2.62208,3813.8,3813.7,0.05029719]
[1717527559823,2.62208,3813.8,3813.6,0.783]
[1717527560029,2.62208,3813.8,3813.7,0.05055845]
[1717527560563,2.62186,3814.1,3813.6,0.783]
[1717527560721,2.62186,3814.1,3814.0,0.783]
[1717527561325,2.62186,3814.1,3814.0,0.83344081]
[1717527561531,2.62186,3814.1,3814.0,0.05044081]
[1717527561729,2.62186,3814.1,3813.8,0.783]
[1717527562166,2.62186,3814.1,3813.9,0.05048002]
[1717527562466,3.111826,3814.1,3813.9,0.05048002]
[1717527562870,2.62201,3813.9,3813.7,0.783]
[1717527563462,2.62201,3813.9,3813.4,2.3666]
[1717527563661,2.62201,3813.9,3813.8,0.783]
[1717527564261,3.1609876,3813.9,3813.6,0.783]
[1717527566999,3.1609876,3813.9,3812.5,0.82405723]
[1717527567000,3.1609876,3813.9,3812.7,0.54937149]
[1717527567156,5.08276,3813.3,3812.5,0.54937149]
[1717527567359,5.08276,3813.3,3812.9,0.783]
[1717527568239,2.62259,3813.1,3813.0,0.783]
[1717527568549,2.62259,3813.1,3813.0,0.83221333]
[1717527568954,2.62259,3813.1,3813.0,0.04921333]
[1717527569252,2.62259,3813.1,3812.9,0.783]
[1717527569778,2.62259,3813.1,3813.0,0.04916775]
[1717527570278,2.428,3814.5,3813.0,0.04916775]
[1717527570485,2.62203,3813.9,3813.1,2.62253]
[1717527570639,2.62203,3813.9,3813.8,0.783]
[1717527570957,2.62179,3814.2,3813.8,0.783]
[1717527571674,2.62179,3814.2,3813.0,2.3437]
[1717527571675,2.62179,3814.2,3814.1,0.783]
[1717527572540,2.62179,3814.2,3813.9,0.783]
[1717527572754,2.62179,3814.2,3814.0,0.04898579]
[1717527573469,2.62156,3814.6,3814.1,0.783]
[1717527573666,3.111366,3814.6,3814.1,0.783]
[1717527573981,3.111366,3814.6,3814.3,0.783]
[1717527574495,3.111366,3814.6,3813.6,4.96399]
[1717527574794,3.0,3814.5,3814.1,0.783]
[1717527574960,2.62186,3814.1,3813.7,0.04910343]
[1717527575160,3.262186,3814.0,3813.4,0.783]
[1717527575466,2.62198,3813.9,3813.8,0.04871628]
[1717527575684,2.62198,3813.9,3813.4,0.783]
[1717527576199,2.62198,3813.9,3813.5,0.04883393]
[1717527577556,2.62198,3813.9,3813.6,0.783]
[1717527577755,2.62198,3813.9,3813.8,0.783]
[1717527577996,2.62198,3813.9,3813.6,0.783]
[1717527578223,2.62178,3814.2,3813.8,0.783]
[1717527578553,3.0,3814.1,3813.8,0.783]
[1717527578795,3.0,3814.1,3813.9,0.04867706]
[1717527580496,0.562178,3814.0,3813.9,0.04867706]
[1717527580799,3.184138,3814.0,3813.5,0.783]
[1717527580958,3.184138,3814.0,3813.9,0.04858386]
[1717527581162,6.184138,3814.0,3813.5,0.783]
[1717527581575,6.184138,3814.0,3813.6,0.04870151]
[1717527581777,0.6184138,3813.9,3813.6,0.04870151]
[1717527582169,0.6184138,3813.9,3813.5,0.783]
[1717527582393,0.6184138,3813.9,3813.6,0.04870151]
[1717527584373,2.62205,3813.8,3813.6,0.04870151]
[1717527585115,2.62205,3813.8,3813.7,0.0488642]
[1717527585356,3.24609638,3813.8,3813.7,0.0488642]
[1717527585487,2.62222,3813.6,3813.2,0.783]
[1717527585886,2.62222,3813.6,3813.3,0.0490273]
[1717527586287,2.62222,3813.6,3813.2,0.783]
[1717527586499,2.62222,3813.6,3813.4,0.04898807]
[1717527586682,2.62222,3813.6,3813.3,0.0490273]
[1717527587002,2.62222,3813.6,3813.4,0.04898807]
[1717527587207,2.62222,3813.6,3813.2,0.783]
[1717527587405,2.62222,3813.6,3813.3,0.0490273]
[1717527587611,2.62222,3813.6,3813.2,0.783]
[1717527587775,2.94684664,3813.6,3813.3,0.0490273]
[1717527587977,2.94684664,3813.6,3813.2,0.783]
[1717527588280,2.94684664,3813.6,3813.3,0.0490273]
[1717527588688,2.94684664,3813.6,3813.2,0.783]
[1717527588981,0.6056093,3813.5,3813.4,0.04898807]
[1717527589183,2.62233,3813.4,3813.3,0.0490273]
[1717527589431,2.62233,3813.4,3812.4,2.7508332]
[1717527589432,2.62254,3813.1,3812.8,0.783]
[1717527589706,2.62254,3813.1,3812.9,0.04918422]
[1717527590488,2.62254,3813.1,3812.7,0.783]
[1717527590689,2.62254,3813.1,3813.0,0.04914498]
[1717527590883,2.62254,3813.1,3812.7,0.783]
[1717527591087,2.62254,3813.1,3813.0,0.04914498]
[1717527591321,5.208994,3813.1,3812.8,0.783]
[1717527591504,4.94674,3813.1,3812.8,0.783]
[1717527591881,4.94674,3813.1,3812.9,0.04918422]
[1717527592502,4.94674,3813.1,3812.7,0.783]
[1717527592710,4.94674,3813.1,3813.0,0.04914498]
[1717527593131,4.94674,3813.1,3812.7,0.783]
[1717527593285,4.94674,3813.1,3813.0,0.04914498]
[1717527593491,4.94674,3813.1,3812.7,0.783]
[1717527593696,4.94674,3813.1,3813.0,0.04752751]
[1717527593995,5.441414,3813.1,3813.0,0.04752751]
[1717527594195,5.441414,3813.1,3812.6,0.783]
[1717527594511,5.441414,3813.1,3812.7,0.04764522]
[1717527597824,5.441414,3813.1,3812.7,0.783]
[1717527598039,5.441414,3813.1,3812.8,0.04818702]
[1717527598234,5.441414,3813.1,3812.7,0.783]
[1717527598434,5.441414,3813.1,3812.9,0.04814778]
[1717527598776,5.441414,3813.1,3812.7,0.783]
[1717527599059,5.441414,3813.1,3813.0,0.04810855]
[1717527599217,5.441414,3813.1,3812.7,0.783]
[1717527599408,5.441414,3813.1,3813.0,0.04810855]
[1717527599603,5.441414,3813.1,3812.7,0.783]
[1717527599809,4.94674,3813.1,3813.0,0.04805244]
[1717527600010,4.94674,3813.1,3812.7,0.783]
[1717527600232,4.93316,3813.1,3812.7,0.783]
[1717527600422,2.6227,3812.9,3812.7,0.783]
[1717527600955,2.3242,3813.1,3812.8,0.783]
[1717527601453,2.62276,3812.8,3812.4,0.9108532]
[1717527601605,4.94677,3813.1,3812.7,0.783]
[1717527602055,2.62257,3813.1,3812.9,0.783]
[1717527602372,5.4454,3813.4,3812.9,0.783]
[1717527602373,3.0,3813.4,3812.9,0.783]
[1717527602508,22.19232,3813.5,3813.3,0.783]
[1717527602715,3.0,3813.4,3813.3,0.783]
[1717527603008,3.0,3813.4,3813.1,0.783]
[1717527603215,2.6224,3813.3,3812.9,0.783]
[1717527603522,2.6224,3813.3,3812.4,2.7508632]
[1717527603856,2.6224,3813.3,3812.4,3.26584952]
[1717527604056,2.3394,3812.9,3812.4,0.9108532]
[1717527605460,2.3394,3812.9,3812.6,0.783]
[1717527605828,2.3394,3812.9,3812.4,0.1278532]
[1717527606262,2.3394,3812.9,3812.5,0.783]
[1717527607022,2.3394,3812.9,3812.6,0.783]
[1717527608754,2.62261,3813.0,3812.8,0.783]
[1717527613269,29.49243,3813.3,3812.8,0.783]
[1717527613442,26.87,3813.3,3813.1,0.783]
[1717527613967,26.87,3813.3,3812.6,4.50483]
[1717527614152,26.87,3813.3,3812.6,5.19415832]
[1717527614749,26.87,3813.3,3812.8,2.62271]
[1717527616763,2.62248,3813.2,3812.6,1.882]
[1717527616958,2.62248,3813.2,3812.5,2.6229]
[1717527617274,2.62248,3813.2,3812.4,0.1278532]
[1717527617275,2.62262,3813.0,3812.4,0.1278532]
[1717527619971,2.62276,3812.8,3812.4,0.1278532]
[1717527621494,4.8944,3812.6,3812.4,0.1278532]
[1717527621904,4.8944,3812.6,3812.5,0.04664118]
[1717527622200,4.8944,3812.6,3812.4,0.1278532]
[1717527629888,2.6229,3812.6,3812.4,0.1278532]
[1717527631304,7.3,3812.8,3812.4,0.1278532]
[1717527631587,3.0,3812.7,3812.4,0.1278532]
[1717527633626,5.62284,3812.7,3812.4,0.1278532]
[1717527634156,8.27314545,3812.7,3812.4,0.1278532]
[1717527635458,5.62284,3812.7,3812.4,0.1278532]
[1717527638051,5.62284,3812.7,3812.6,0.784]
[1717527639318,8.02284,3812.7,3812.4,0.1278532]
[1717527639517,8.02284,3812.7,3812.4,0.9118532]
[1717527639749,2.62295,3812.5,3812.4,0.9118532]
[1717527643728,2.62295,3812.5,3812.4,0.1278532]
[1717527645730,2.62295,3812.5,3812.4,0.9118532]
[1717527647574,2.62295,3812.5,3812.4,0.1278532]
[1717527647782,2.62295,3812.5,3812.4,0.9118532]
[1717527652249,2.62295,3812.5,3812.4,0.1278532]
[1717527652451,7.60855545,3812.5,3812.4,0.9118532]
[1717527655086,5.27325545,3812.5,3812.4,0.9118532]
[1717527655646,2.62295,3812.5,3812.4,0.9118532]
[1717527660504,22.57,3812.7,3812.4,0.9118532]
[1717527660705,22.57,3812.7,3812.6,0.784]
[1717527661077,2.62288,3812.6,3812.4,0.1278532]
[1717527661275,2.62288,3812.6,3812.5,0.784]
[1717527661470,3.72575525,3812.6,3812.4,0.1278532]
[1717527661670,6.16535525,3812.6,3812.4,0.1278532]
[1717527661975,3.0,3812.5,3812.4,0.1278532]
[1717527662185,3.0,3812.5,3812.4,0.9118532]
[1717527662564,3.0,3812.5,3812.4,0.1278532]
[1717527662780,5.65030545,3812.5,3812.4,0.9118532]
[1717527663392,6.21708951,3812.5,3812.4,0.1278532]
[1717527663735,8.51238951,3812.5,3812.4,0.1278532]
[1717527667803,7.94560545,3812.5,3812.4,0.1278532]
[1717527668713,3.0,3812.5,3812.4,0.1278532]
[1717527669472,3.0,3812.5,3812.4,0.9118532]
[1717527669914,3.0,3812.5,3812.4,0.1278532]
[1717527681344,2.62384,3811.3,3811.0,0.54937149]
[1717527681547,2.62384,3811.3,3811.1,0.04317728]
[1717527682057,2.62384,3811.3,3810.9,1.883]
[1717527682058,2.62384,3811.3,3811.2,0.04313801]
[1717527682412,2.62384,3811.3,3810.9,1.883]
[1717527682752,2.62384,3811.3,3811.0,0.04321655]
[1717527683116,2.62384,3811.3,3810.9,1.883]
[1717527683363,2.62384,3811.3,3811.1,0.04317728]
[1717527683657,0.262384,3811.2,3810.6,1.883]
[1717527683822,2.62428,3810.6,3810.2,1.883]
[1717527685846,2.62406,3810.9,3810.3,0.55]
[1717527686028,2.62406,3810.9,3810.8,1.883]
[1717527686581,19.57,3811.1,3810.8,1.883]
[1717527686779,19.57,3811.1,3810.8,2.6213]
[1717527686947,19.57,3811.1,3810.8,2.0713]
[1717527687126,19.57,3811.1,3810.9,0.55]
[1717527687540,19.57,3811.1,3811.0,1.883]
[1717527687738,2.62405,3810.9,3810.4,2.373]
[1717527688056,2.62405,3810.9,3810.8,1.883]
[1717527691140,2.62434,3810.5,3810.4,1.883]
[1717527691562,2.62434,3810.5,3810.4,1.92675309]
[1717527692739,7.71468,3810.5,3810.4,0.04375309]
[1717527692972,12.216148,3810.5,3810.4,0.04375309]
[1717527693295,2.62492,3809.7,3809.5,2.5]
[1717527693497,2.62469,3810.0,3809.6,1.883]
[1717527693721,2.62469,3810.0,3809.9,1.883]
[1717527694077,29.49449,3810.3,3809.9,1.92796731]
[1717527694275,3.0,3810.2,3809.9,1.92796731]
[1717527694591,3.0,3810.2,3809.9,1.883]
[1717527697099,3.0,3810.2,3810.0,0.04492802]
[1717527698177,2.62429,3810.6,3810.0,0.04492802]
[1717527698514,2.62429,3810.6,3810.4,1.883]
[1717527698698,3.0,3810.5,3810.4,1.883]
[1717527699773,22.19408,3810.9,3810.4,1.883]
[1717527699975,3.0,3810.8,3810.4,1.883]
[1717527700278,19.57,3810.9,3810.8,1.883]
[1717527700482,2.62387,3811.2,3810.8,1.883]
[1717527701868,2.62367,3811.5,3810.8,1.883]
[1717527702067,7.3,3811.6,3811.4,1.883]
[1717527702609,2.62363,3811.5,3811.4,1.883]
[1717527703103,2.62363,3811.5,3810.5,2.6243]
[1717527703307,2.62363,3811.5,3811.2,1.883]
[1717527705122,2.62391,3811.1,3810.0,5.01835]
[1717527705421,2.62391,3811.1,3810.8,1.883]
[1717527705570,2.62391,3811.1,3810.9,0.0442827]
[1717527705974,2.62391,3811.1,3810.8,1.883]
[1717527706177,2.62391,3811.1,3810.9,0.0442827]
[1717527706376,2.62391,3811.1,3810.8,1.883]
[1717527706612,0.262391,3811.0,3810.8,1.883]
[1717527706819,2.62405,3810.9,3810.8,1.883]
[1717527707013,2.62405,3810.9,3810.0,2.3937]
[1717527707214,2.62405,3810.9,3810.6,1.883]
[1717527709189,2.62424,3810.7,3810.1,0.55]
[1717527709390,2.62424,3810.7,3809.9,2.62471]
[1717527709391,2.62424,3810.7,3810.4,1.883]
[1717527711526,0.2886631,3810.7,3810.0,0.55]
[1717527711824,2.62437,3810.5,3810.3,1.883]
[1717527712046,2.62451,3810.3,3810.0,0.55]
[1717527712248,2.62451,3810.3,3810.1,0.04437038]
[1717527714964,2.62451,3810.3,3810.0,1.883]
[1717527715126,2.886961,3810.3,3810.0,1.883]
[1717527715513,2.886961,3810.3,3810.1,0.0446373]
[1717527715926,2.886961,3810.3,3810.0,1.883]
[1717527716205,2.886961,3810.3,3810.1,0.0446373]
[1717527716425,2.886961,3810.3,3810.0,1.883]
[1717527716617,2.886961,3810.3,3810.1,0.04465283]
[1717527716817,2.886961,3810.3,3810.0,1.883]
[1717527717024,2.886961,3810.3,3810.1,0.04465283]
[1717527717226,2.886961,3810.3,3810.0,1.883]
[1717527717545,0.2886961,3810.2,3810.1,0.04465283]
[1717527717910,2.62486,3809.8,3809.5,2.5]
[1717527720121,2.62494,3809.6,3809.5,2.5]
[1717527721358,2.62494,3809.6,3809.5,4.383]
[1717527721928,2.62494,3809.6,3809.5,4.42523906]
[1717527722255,2.62494,3809.6,3809.5,2.54223906]
[1717527722456,5.470034,3809.6,3809.5,2.5]
[1717527724668,8.470034,3809.6,3809.5,2.5]
[1717527725033,6.187434,3809.6,3809.5,2.5]
[1717527727233,8.563534,3809.6,3809.5,2.5]
[1717527727462,11.188474,3809.6,3809.5,2.5]
[1717527729231,11.188474,3809.6,3808.6,0.1278532]
[1717527729232,13.813414,3809.6,3808.6,0.1278532]
[1717527729430,6.67583643,3809.5,3808.6,0.1278532]
[1717527729747,7.24312974,3809.5,3808.6,0.1278532]
[1717527730367,7.24312974,3809.5,3808.8,1.883]
[1717527730572,8.81231695,3809.5,3808.8,1.883]
[1717527730737,6.67583643,3809.5,3808.8,1.883]
[1717527730929,6.67583643,3809.5,3809.2,1.883]
[1717527732434,4.27573643,3809.5,3809.2,1.883]
[1717527732764,3.0,3809.5,3809.2,1.883]
[1717527732941,3.0,3809.5,3809.0,1.883]
[1717527733270,2.62529,3809.1,3808.6,0.1278532]
[1717527733476,4.94976,3808.7,3808.6,0.1278532]
[1717527733638,7.94976,3808.7,3808.6,0.1278532]
[1717527735240,9.007273,3808.7,3808.6,0.1278532]
[1717527735484,9.007273,3808.7,3807.1,2.62665]
[1717527735485,2.62598,3808.1,3808.0,1.2608532]
[1717527736287,2.62578,3808.4,3808.0,1.2608532]
[1717527736483,2.62578,3808.4,3808.3,1.883]
[1717527738391,5.62558,3808.7,3808.3,1.883]
[1717527738751,3.0,3808.7,3808.3,1.883]
[1717527739054,3.0,3808.9,3808.3,1.883]
[1717527739289,3.0,3808.9,3808.8,1.883]
[1717527739491,7.3,3809.3,3808.8,1.883]
[1717527739675,7.3,3809.3,3809.2,1.883]
[1717527740012,22.1951,3809.4,3809.2,1.883]
[1717527740566,3.0,3809.3,3809.2,1.883]
[1717527742279,22.1951,3809.4,3809.2,1.883]
[1717527743156,22.1951,3809.4,3809.3,0.0400028]
[1717527743583,22.1951,3809.4,3809.2,1.883]
[1717527743781,19.57,3809.4,3809.3,0.0400028]
[1717527743982,19.57,3809.6,3809.3,0.0400028]
[1717527744282,3.0,3809.5,3808.9,2.6254]
[1717527744496,3.0,3809.5,3809.4,1.883]
[1717527744652,2.62489,3809.7,3809.4,1.883]
[1717527755800,19.57,3809.9,3809.4,1.883]
[1717527755985,3.0,3809.8,3809.2,5.11069]
[1717527756183,3.0,3809.8,3809.7,1.883]
[1717527758105,19.57,3809.9,3809.7,1.883]
[1717527758651,19.57,3809.9,3809.8,0.03667938]
[1717527758804,19.57,3809.9,3809.7,1.883]
[1717527758994,19.57,3809.9,3809.8,0.03640485]
[1717527759337,19.57,3809.9,3809.5,1.883]
[1717527759486,19.57,3809.9,3809.8,0.0363134]
[1717527759691,19.57,3809.9,3809.6,0.55]
[1717527760087,7.3,3810.5,3809.7,2.4427]
[1717527760333,7.3,3810.5,3810.4,1.883]
[1717527761797,7.3,3810.5,3809.8,0.55]
[1717527763746,0.992475,3809.8,3809.7,1.767263]
[1717527764037,3.992475,3809.8,3809.7,1.767263]
[1717527767600,4.5596485,3809.8,3809.7,1.767263]
[1717527767825,4.55964787,3809.8,3809.7,1.767263]
[1717527768141,3.992475,3809.8,3809.7,1.767263]
[1717527768437,4.55963559,3809.8,3809.7,1.767263]
[1717527768744,6.12849059,3809.8,3809.7,1.767263]
[1717527771232,4.55963559,3809.8,3809.7,1.767263]
[1717527771546,3.0,3809.8,3809.7,1.767263]
[1717527772403,3.56714538,3809.8,3809.7,1.767263]
[1717527773636,3.56714508,3809.8,3809.7,1.767263]
[1717527776328,2.62475,3809.9,3809.7,1.767263]
[1717527776648,2.62475,3809.9,3809.7,1.8068483]
[1717527778157,2.62457,3810.2,3809.7,4.0770483]
[1717527778454,2.62457,3810.2,3810.1,1.883]
[1717527779826,2.62437,3810.5,3810.1,1.883]
[1717527780024,3.0,3810.4,3810.1,1.883]
[1717527780435,2.62446,3810.3,3810.1,1.883]
[1717527780955,3.34369223,3810.3,3810.1,1.883]
[1717527781126,2.62476,3809.9,3809.7,1.883]
[1717527781856,4.19290641,3810.2,3809.7,1.883]
[1717527782055,4.19290641,3810.2,3809.1,2.4239]
[1717527782056,2.62457,3810.2,3810.1,1.883]
[1717527783156,2.62435,3810.5,3810.1,1.883]
[1717527783863,34.55413,3810.8,3810.1,1.883]
[1717527784061,3.0,3810.7,3810.0,2.62464]
[1717527784369,3.0,3810.7,3810.6,1.883]
[1717527784576,7.3,3810.9,3810.6,1.883]
[1717527786340,9.95030545,3810.9,3810.1,0.55]
[1717527786547,9.95030545,3810.9,3810.7,1.883]
[1717527787920,2.65030545,3810.9,3810.7,1.883]
[1717527789328,2.62404,3811.0,3810.7,1.883]
[1717527791573,2.62404,3811.0,3810.2,2.62447]
[1717527791871,2.62404,3811.0,3810.5,1.883]
[1717527792367,2.62419,3810.7,3810.5,1.883]
[1717527792578,2.62439,3810.4,3809.2,0.54937149]
[1717527792780,2.62463,3810.1,3809.8,1.883]
[1717527792995,2.62488,3809.7,3809.3,0.03486673]
[1717527793129,2.62488,3809.7,3808.6,2.4184]
[1717527793481,2.6251,3809.4,3809.1,1.883]
[1717527794133,2.62486,3809.8,3809.1,1.883]
[1717527794331,2.625,3809.6,3809.1,1.883]
[1717527795560,2.65030545,3809.8,3809.1,1.883]
[1717527795561,2.6252,3809.3,3809.1,1.883]
[1717527795730,2.62537,3809.0,3808.3,2.62578]
[1717527795932,2.62537,3809.0,3807.7,0.54937149]
[1717527795933,2.62537,3809.0,3808.5,1.883]
[1717527798126,2.62537,3809.0,3808.9,1.883]
[1717527799270,2.887907,3809.0,3808.9,1.883]
[1717527799900,0.262537,3809.0,3808.1,1.883]
[1717527800075,7.3,3809.4,3808.1,1.883]
[1717527800076,2.62577,3808.5,3808.1,1.883]
[1717527801896,3.0,3809.3,3808.1,1.883]
[1717527802099,2.62551,3808.8,3808.7,1.883]
[1717527802246,5.62551,3808.8,3808.7,1.883]
[1717527803889,3.0,3808.8,3808.7,1.883]
[1717527804189,2.62531,3809.1,3808.7,1.883]
[1717527804190,3.0,3809.0,3808.7,1.883]
[1717527804343,3.0,3809.0,3808.7,1.92331304]
[1717527804546,2.62542,3808.9,3808.7,1.883]
[1717527804993,2.62542,3808.9,3808.8,0.04027372]
[1717527805201,5.62542,3808.9,3808.8,0.04027372]
[1717527805492,5.62542,3808.9,3808.7,1.883]
[1717527805902,5.62542,3808.9,3808.8,0.04022414]